fUSD/lending_fUSD_20241224
["ID","MTS","AMOUNT","RATE_DAILY","PERIOD"]
[346540682,1735061439664,-701.50499999,0.00013,2]
[346540683,1735061439676,-282.45650007,0.00013,2]
[346540684,1735061439738,-14993.95356506,0.00013,2]
[346540685,1735061440063,-823.431,0.00013,2]
[346540686,1735061440075,-509.59999992,0.00013,2]
[346540687,1735061440086,-99904.59817532,0.00013,2]
[346540689,1735061440128,-465.76255719,0.00013,2]
[346540690,1735061440142,-495.6,0.00013,2]
[346540707,1735061442656,-7565.95,0.000122,2]
[346540708,1735061442718,-325.5816564,0.000122,2]
[346540709,1735061442730,-1698.4683436,0.000122,2]
[346540710,1735061442739,-3165.17330373,0.00013,2]
[346540711,1735061442771,-500.0,0.00013,2]
[346540712,1735061442783,-2387.78163229,0.00013,2]
[346540713,1735061442794,-5642.4997,0.00013,2]
[346540714,1735061442805,-3576.9,0.00013,2]
[346540715,1735061442856,-1707.8,0.00013,2]
[346540716,1735061442868,-6597.02326901,0.00013,2]
[346540720,1735061445718,-19798.53595291,0.00013,2]
[346540721,1735061445730,-884.457,0.00013,2]
[346540722,1735061445742,-7952.07334636,0.00013,2]
[346540723,1735061445759,-10960.0,0.00013,2]
[346540724,1735061445798,-2168.3280205,0.00013,2]
[346540725,1735061445811,-18767.11344377,0.00013,2]
[346540726,1735061445854,-51009.38434,0.00013,2]
[346540727,1735061445865,-1800.0,0.00013,2]
[346540728,1735061445876,-57391.1998,0.00013,2]
[346540729,1735061445926,-1167.1371791,0.00013,2]
[346540730,1735061445938,-9895.6926568,0.00013,2]
[346540731,1735061446042,-581.87,0.000122,2]
[346540732,1735061446117,-588.13,0.000122,2]
[346540733,1735061446126,-29697.20121823,0.00013,2]
[346541448,1735062631801,-337.3171597,0.00010037,2]
[346541449,1735062631811,-901.04,0.00010128,2]
[346541450,1735062631821,-170.59,0.00010137,2]
[346541451,1735062631831,-324.41,0.00010137,2]
[346541452,1735062631842,-723.03,0.00011868,2]
[346541453,1735062631851,-1000.0,0.00011885,2]
[346541454,1735062631861,-298.8,0.00011895,2]
[346541455,1735062631871,-400.0,0.0001213,2]
[346541456,1735062631881,-250.0,0.00012199,2]
[346541457,1735062631891,-231.39651321,0.0001235,2]
[346541458,1735062631903,-355.14348679,0.0001235,2]
[346541459,1735062631913,-901.04,0.00012392,2]
[346541460,1735062631923,-2011.0,0.000124,2]
[346541461,1735062631932,-1265.0,0.000124,2]
[346541462,1735062631942,-9634.48,0.000124,2]
[346541463,1735062631952,-150.0,0.000124,2]
[346541464,1735062631962,-327.4,0.000124,2]
[346541465,1735062631971,-694.28,0.000124,2]
[346541466,1735062631981,-150.99,0.000124,2]
[346541467,1735062631990,-633.0,0.000124,2]
[346541468,1735062632000,-565.0,0.000124,2]
[346541469,1735062632009,-1899.0,0.000124,2]
[346541470,1735062632019,-3771.0,0.000124,2]
[346541471,1735062632028,-818.0,0.000124,2]
[346541472,1735062632037,-1256.0,0.000124,2]
[346541473,1735062632047,-923.0,0.000124,2]
[346541474,1735062632057,-2537.213,0.000124,2]
[346541475,1735062632066,-536.0,0.000124,2]
[346541476,1735062632076,-150.0,0.000124,2]
[346541477,1735062632086,-4117.45,0.00012424,2]
[346541478,1735062632095,-299.99,0.00012424,2]
[346541479,1735062632104,-629.44,0.00012486,2]
[346541480,1735062632114,-3670.0,0.000126,5]
[346541481,1735062632125,-977.57,0.000126,2]
[346541482,1735062632135,-436.42,0.000126,2]
[346541483,1735062632145,-280.88584222,0.00012642,2]
[346541484,1735062632155,-937.605,0.00012805,2]
[346541485,1735062632164,-1043.22923214,0.00012805,2]
[346541486,1735062632175,-14592.7655937,0.0001287,2]
[346541487,1735062632184,-157.23521798,0.00012897,2]
[346541488,1735062632194,-157.23521798,0.00012898,2]
[346541489,1735062632204,-157.23521798,0.00012898,2]
[346541490,1735062632214,-157.23521798,0.00012899,2]
[346541491,1735062632225,-157.23521798,0.00012899,2]
[346541492,1735062632234,-51.16053878,0.000129,2]
[346541493,1735062632286,-986.55,0.000129,2]
[346541494,1735062632297,-8526.73096122,0.000129,2]
[346541495,1735062632307,-790.4088,0.000129,2]
[346541496,1735062632316,-157.23521798,0.000129,2]
[346541497,1735062632326,-500.0,0.00012979,2]
[346541498,1735062632336,-277.256869,0.00012979,2]
[346541499,1735062632345,-202545.0299626,0.0001298,2]
[346541500,1735062632363,-39102.99788187,0.0001298,2]
[346541501,1735062632444,-30506.30469937,0.0001298,2]
[346541502,1735062637715,-618.25284169,0.000124,2]
[346541504,1735062637746,-3269.74715831,0.000124,2]
[346541505,1735062637756,-4001.01971369,0.0001298,2]
[346541506,1735062637862,-1620.12712499,0.0001298,2]
[346541507,1735062637919,-1487.23154636,0.0001298,2]
[346541508,1735062637978,-2636.95,0.0001298,2]
[346541509,1735062637990,-3257.54992243,0.0001298,2]
[346541510,1735062638019,-403.400028,0.0001298,2]
[346541511,1735062638063,-197200.00000001,0.0001298,2]
[346541668,1735062639832,-462.28166682,0.0001298,2]
[346541681,1735062639957,-864.60574511,0.0001298,2]
[346541686,1735062639997,-22982.58151607,0.0001298,2]
[346541698,1735062640094,-364.96708586,0.0001298,2]
[346541700,1735062640106,-569.22959392,0.0001298,2]
[346541703,1735062640124,-278.8631106,0.0001298,2]
[346541705,1735062640135,-257.7115,0.0001298,2]
[346541728,1735062640346,-3151.84771964,0.0001298,2]
[346541731,1735062640358,-5829.85985594,0.0001298,2]
[346541733,1735062640370,-1193.49997,0.0001298,2]
[346541737,1735062640400,-1013.99545403,0.0001298,2]
[346541969,1735062643178,-250.0,0.00012627,2]
[346541971,1735062643188,-476.78161426,0.0001298,2]
[346542092,1735062645947,-7074.93454816,0.0001298,2]
[346542093,1735062645963,-613.15,0.0001298,2]
[346542094,1735062645991,-590.2734729,0.0001298,2]
[346542095,1735062646051,-60154.85135484,0.0001298,2]
[346542096,1735062646063,-719.51698368,0.0001298,2]
[346542126,1735063832017,-302.53,0.00010137,2]
[346542127,1735063832026,-901.38,0.00010248,2]
[346542128,1735063832037,-837.03990913,0.00011,5]
[346542129,1735063832047,-200.0,0.00011471,2]
[346542130,1735063832056,-11806.52486891,0.00011509,2]
[346542140,1735063832893,-809.55910396,0.00011509,2]
[346542146,1735063832940,-836.0,0.00011509,2]
[346542152,1735063832991,-3086.30673023,0.00011509,2]
[346542154,1735063833004,-4237.39069681,0.00011509,2]
[346542157,1735063833015,-525.00000005,0.00011509,2]
[346542163,1735063833073,-2589.21860004,0.00011509,2]
[346542165,1735063833082,-2500.0,0.00011681,2]
[346542167,1735063833092,-1000.0,0.00011695,2]
[346542169,1735063833101,-715.06,0.00011774,2]
[346542171,1735063833111,-13523.91413182,0.00011781,2]
[346542172,1735063833120,-51036.28196453,0.00011781,2]
[346542173,1735063833132,-810.97479043,0.00011781,2]
[346542185,1735063838109,-3185.98509363,0.00011781,2]
[346542186,1735063838239,-408.499957,0.00011781,2]
[346542197,1735063840060,-395.88,0.00011781,2]
[346542198,1735063840071,-948.171807,0.00011781,2]
[346542199,1735063840198,-10217.16609114,0.00011781,2]
[346542200,1735063840211,-117533.09522733,0.00011781,2]
[346542201,1735063840225,-1985.61959859,0.00011781,2]
[346542202,1735063840237,-281607.81553669,0.00011781,2]
[346542203,1735063840343,-7618.07795771,0.00011781,2]
[346542204,1735063840381,-1606.229472,0.00011781,2]
[346542205,1735063840392,-980.44946021,0.00011781,2]
[346542206,1735063840500,-686.24633394,0.00011781,2]
[346542212,1735063843765,-843.80444969,0.00011781,2]
[346542213,1735063843776,-519.55110363,0.00011781,2]
[346542214,1735063843787,-22491.7547035,0.00011781,2]
[346542215,1735063843856,-401.0,0.00011781,2]
[346542216,1735063843891,-1112.21460149,0.00011781,2]
[346542217,1735063843902,-923.33529838,0.00011781,2]
[346542218,1735063843913,-1098.0000002,0.00011781,2]
[346542219,1735063843924,-3517.6,0.00011781,2]
[346542220,1735063843985,-305402.72113273,0.00011781,2]
[346542221,1735063843997,-6615.8835218,0.00011781,2]
[346542222,1735063844010,-931.13278959,0.00011781,2]
[346542223,1735063844022,-350.46,0.00011781,2]
[346542224,1735063844033,-1996.23677394,0.00011781,2]
[346542225,1735063844045,-1014050.84258596,0.00011781,2]
[346542227,1735063846027,-2500.0,0.00011681,2]
[346542228,1735063846037,-3949.28804433,0.00011781,2]
[346542229,1735063846066,-27091.55161236,0.00011781,2]
[346542230,1735063846077,-7404.41532893,0.00011781,2]
[346542231,1735063846090,-594.739795,0.00011781,2]
[346542232,1735063846101,-1288.18878332,0.00011781,2]
[346542233,1735063846116,-715.58487973,0.00011781,2]
[346542234,1735063846144,-2213.15629143,0.00011781,2]
[346542235,1735063846264,-441.64,0.00011781,2]
[346542236,1735063846505,-22787.37970422,0.00011781,2]
[346542237,1735063846517,-12379.50287391,0.00011781,2]
[346542246,1735064719674,3355.89766671,9e-05,2]
[346542247,1735064736129,5000.0,8e-05,2]
[346542249,1735064754180,5873.16369357,6.94e-05,2]
[346542260,1735064774717,856.31,8.954e-05,2]
[346542296,1735065002942,150.0,8.954e-05,2]
[346542297,1735065003152,151.4159304,8.954e-05,2]
[346542318,1735065032202,-151.06375834,0.0001,2]
[346542319,1735065032212,-169.1,0.00010137,2]
[346542321,1735065032221,-249.28,0.00010661,2]
[346542322,1735065032231,-981.13098973,0.000108,2]
[346542323,1735065032240,-704.31,0.00010948,2]
[346542324,1735065032251,-400.0,0.00010986,2]
[346542325,1735065032261,-300.0,0.00010999,2]
[346542326,1735065032270,-509.566177,0.00011,2]
[346542327,1735065032279,-528.565144,0.00011,2]
[346542328,1735065032289,-533.550452,0.00011,2]
[346542329,1735065032302,-535.34956,0.00011,2]
[346542330,1735065032311,-537.742654,0.00011,2]
[346542331,1735065032321,-541.413072,0.00011,2]
[346542332,1735065032331,-545.928345,0.00011,2]
[346542333,1735065032340,-550.653615,0.00011,2]
[346542334,1735065032349,-555.097745,0.00011,2]
[346542335,1735065032358,-1000.0,0.0001101,2]
[346542336,1735065032368,-365.25,0.000111,2]
[346542337,1735065032377,-1600.31,0.00011167,2]
[346542338,1735065032386,-365.25,0.00011178,2]
[346542339,1735065032396,-433.17,0.00011178,2]
[346542340,1735065032405,-365.25,0.000112,2]
[346542341,1735065032414,-973.19,0.000112,2]
[346542342,1735065032424,-856.31,0.00011218,2]
[346542343,1735065032434,-500.0,0.00011233,2]
[346542344,1735065032443,-977.57,0.000113,2]
[346542345,1735065032452,-365.25,0.000113,2]
[346542346,1735065032461,-436.42,0.000113,2]
[346542347,1735065032472,-436.42,0.0001137,2]
[346542348,1735065032482,-250.0,0.00011395,2]
[346542349,1735065032492,-977.57,0.000114,2]
[346542350,1735065032502,-436.42,0.000114,2]
[346542355,1735065032686,-365.25,0.000114,2]
[346542358,1735065032708,-365.25,0.000114,2]
[346542360,1735065032718,-977.57,0.000114,2]
[346542362,1735065032727,-436.42,0.000114,2]
[346542363,1735065032736,-3082.21,0.00011434,2]
[346542365,1735065032746,-538.16,0.00011493,2]
[346542366,1735065032755,-937.605,0.00011545,2]
[346542367,1735065032764,-436.42,0.00011556,2]
[346542368,1735065032773,-977.57,0.00011556,2]
[346542369,1735065032782,-150.0,0.00011556,2]
[346542370,1735065032793,-215.37,0.00011556,2]
[346542371,1735065032802,-280.88584222,0.00011642,2]
[346542372,1735065032811,-150.0,0.00011656,2]
[346542373,1735065032820,-57.83994245,0.00011656,2]
[346542378,1735065032927,-307.41005755,0.00011656,2]
[346542379,1735065032936,-436.42,0.00011656,2]
[346542380,1735065032945,-316.7820435,0.00011656,2]
[346542381,1735065033002,-660.7879565,0.00011656,2]
[346542382,1735065033011,-254.68795386,0.0001166,2]
[346542383,1735065033023,-699.93603081,0.0001166,2]
[346542388,1735065038098,-639.28884849,0.0001166,2]
[346542394,1735065038134,-1406.08716684,0.0001166,2]
[346542396,1735065038144,-14592.7655937,0.0001167,2]
[346542400,1735065038154,-509.566177,0.00011674,2]
[346542401,1735065038163,-528.565144,0.00011674,2]
[346542403,1735065038173,-533.550452,0.00011674,2]
[346542405,1735065038182,-535.34956,0.00011674,2]
[346542407,1735065038192,-537.742654,0.00011674,2]
[346542409,1735065038201,-541.413072,0.00011674,2]
[346542411,1735065038210,-96.53463046,0.00011674,2]
[346542415,1735065038238,-449.39371454,0.00011674,2]
[346542417,1735065038248,-550.653615,0.00011674,2]
[346542419,1735065038258,-555.097745,0.00011674,2]
[346542421,1735065038268,-14091.77389216,0.00011681,2]
[346542425,1735065038364,-233.09840784,0.00011681,2]
[346542426,1735065038374,-404.7227,0.00011681,2]
[346542427,1735065038384,-365.25,0.00011756,2]
[346542428,1735065038393,-436.42,0.00011756,2]
[346542429,1735065038402,-1954.75,0.00011756,2]
[346542430,1735065038411,-975.8,0.00011756,2]
[346542431,1735065038422,-150.0,0.00011756,2]
[346542432,1735065038431,-150.0,0.00011756,2]
[346542433,1735065038440,-436.07,0.00011756,2]
[346542434,1735065038450,-150.0,0.00011756,2]
[346542435,1735065038460,-365.25,0.00011756,2]
[346542436,1735065038470,-255.49751647,0.0001177,2]
[346542437,1735065038479,-468.01953595,0.0001178,2]
[346542439,1735065038488,-540.64748608,0.0001178,2]
[346542440,1735065038498,-569.29792285,0.00011781,7]
[346542441,1735065038509,-9244.82890565,0.00011781,7]
[346542442,1735065038519,-49771.2132766,0.00011781,7]
[346542443,1735065038537,-6895.95158605,0.00011781,7]
[346542444,1735065038579,-1638.5001,0.00011781,7]
[346542465,1735065040350,-269.08,0.0001173,2]
[346542466,1735065040365,-5987.07049698,0.00011781,7]
[346542467,1735065041358,-2353.77167174,0.00011781,7]
[346542468,1735065041370,-372.04657447,0.00011781,7]
[346542469,1735065041382,-332.54659203,0.00011781,7]
[346542470,1735065043240,-263.25781165,0.00011781,7]
[346542471,1735065043254,-24394.6,0.00011781,7]
[346542472,1735065043265,-257.99449987,0.00011781,7]
[346542512,1735065043552,-398.64297691,0.00011781,7]
[346542540,1735065043907,-2208.4000004,0.00011781,7]
[346542765,1735065046165,-29849.02798097,0.00011781,7]
[346542789,1735065046382,-1592.7472607,0.00011781,7]
[346542793,1735065046418,-433.9412,0.00011781,7]
[346542797,1735065046441,-8814.67136553,0.00011781,7]
[346542799,1735065046453,-7052.15226,0.00011781,7]
[346542802,1735065046475,-57167.8380301,0.00011781,7]
[346542804,1735065046484,-5545.19228221,0.00011781,7]
[346542806,1735065046493,-42790.68888582,0.00011781,7]
[346542809,1735065046513,-71286.66069418,0.00011781,7]
[346542811,1735065046523,-3013.92781678,0.00011781,7]
[346542813,1735065046533,-331.0545365,0.00011781,7]
[346543363,1735065054754,584.847471,0.00019,30]
[346543364,1735065056700,584.847471,0.00016,15]
[346543365,1735065057000,584.847471,0.00016,15]
[346543366,1735065057324,584.847471,0.00016,15]
[346543367,1735065057701,584.847471,0.00016,15]
[346543368,1735065057980,584.847471,0.00016,15]
[346543371,1735066042618,770.67,9.401e-05,2]
[346543379,1735066232584,-150.89083964,0.0001,2]
[346543380,1735066232593,-308.18,0.00010137,2]
[346543381,1735066232603,-4028.11000483,0.00011,2]
[346543382,1735066232616,-584.847471,0.00011,2]
[346543383,1735066232626,-269.08,0.00011384,2]
[346543384,1735066232635,-400.0,0.00011504,2]
[346543385,1735066232645,-150.0,0.00011644,2]
[346543386,1735066232654,-770.67,0.00011665,2]
[346543387,1735066232663,-584.847471,0.00011674,2]
[346543388,1735066232674,-572.04,0.00011676,2]
[346543389,1735066232684,-300.0,0.0001168,2]
[346543390,1735066232693,-399.5724,0.00011681,2]
[346543391,1735066232703,-793.6056,0.00011681,2]
[346543392,1735066232712,-5839.38325963,0.00011681,2]
[346543393,1735066232735,-6801.94804037,0.00011681,2]
[346543394,1735066232744,-235.78,0.000117,2]
[346543395,1735066232753,-977.57,0.000117,2]
[346543396,1735066232763,-250.0,0.00011706,2]
[346543397,1735066232772,-1000.0,0.00011761,2]
[346543398,1735066232781,-3000.0,0.0001178,2]
[346543399,1735066232791,-855.22269352,0.0001178,2]
[346543400,1735066232800,-93.21631129,0.00011781,7]
[346543401,1735066232840,-380681.86759671,0.00011781,7]
[346543402,1735066232850,-365.25,0.000118,2]
[346543403,1735066232859,-1000.0,0.00012,12]
[346543404,1735066232870,-2000.0,0.000123,2]
[346543405,1735066232880,-704.31,0.00012316,2]
[346543406,1735066232889,-599.358,0.0001233,2]
[346543407,1735066232899,-509.566177,0.00012349,2]
[346543408,1735066232908,-528.565144,0.00012349,2]
[346543409,1735066232918,-533.550452,0.00012349,2]
[346543410,1735066232931,-535.34956,0.00012349,2]
[346543411,1735066232941,-537.742654,0.00012349,2]
[346543412,1735066232951,-541.413072,0.00012349,2]
[346543413,1735066232961,-545.928345,0.00012349,2]
[346543414,1735066232970,-550.653615,0.00012349,2]
[346543415,1735066232979,-555.097745,0.00012349,2]
[346543416,1735066232989,-584.847471,0.00012349,2]
[346543417,1735066232999,-9535.70464397,0.00012356,2]
[346543418,1735066233008,-806639.27379843,0.00012356,2]
[346543419,1735066233021,-7704.2232308,0.00012356,2]
[346543420,1735066233033,-1211.0,0.00012356,2]
[346543423,1735066233064,-455.07,0.00012356,2]
[346543425,1735066233103,-1006.1552966,0.00012356,2]
[346543449,1735066233358,-9203.25639999,0.00012356,2]
[346543450,1735066233370,-29678.44351192,0.00012356,2]
[346543451,1735066233436,-1764.13725601,0.00012356,2]
[346543452,1735066233447,-1156.93354234,0.00012356,2]
[346543453,1735066233461,-3497.70329168,0.00012356,2]
[346543454,1735066233473,-3019.81612186,0.00012356,2]
[346543457,1735066238388,-2190.0,0.00012356,2]
[346543458,1735066238436,-805.93220477,0.00012356,2]
[346543459,1735066238448,-94956.50554014,0.00012356,2]
[346543460,1735066238610,-1479.662167,0.00012356,2]
[346543461,1735066238624,-2198.98756785,0.00012356,2]
[346543462,1735066238671,-1322.5644091,0.00012356,2]
[346543463,1735066238684,-4292.45539377,0.00012356,2]
[346543464,1735066238698,-48509.70000005,0.00012356,2]
[346543465,1735066238738,-11577.70813081,0.00012356,2]
[346543468,1735066240477,-1975.11149784,0.00012356,2]
[346543469,1735066240491,-162349.20478993,0.00012356,2]
[346543470,1735066240500,-2011.0,0.00012356,2]
[346543471,1735066240509,-1265.0,0.00012356,2]
[346543472,1735066240519,-150.0,0.00012356,2]
[346543473,1735066240528,-633.0,0.00012356,2]
[346543474,1735066240537,-565.0,0.00012356,2]
[346543475,1735066240546,-1899.0,0.00012356,2]
[346543476,1735066240555,-3771.0,0.00012356,2]
[346543477,1735066240565,-923.0,0.00012356,2]
[346543478,1735066240574,-183.328,0.00012356,2]
[346543479,1735066240584,-818.0,0.00012356,2]
[346543480,1735066240595,-2923.95,0.00012356,2]
[346543481,1735066240603,-536.0,0.00012356,2]
[346543482,1735066240618,-3888.0,0.00012356,2]
[346543483,1735066240631,-150.0,0.00012356,2]
[346543484,1735066240640,-325.581,0.00012356,2]
[346543485,1735066240651,-1474.0,0.000125,5]
[346543486,1735066240665,-153.0,0.00012625,2]
[346543487,1735066240676,-153.0,0.00012625,2]
[346543488,1735066240685,-153.0,0.00012625,2]
[346543489,1735066240695,-153.0,0.00012625,2]
[346543490,1735066240704,-153.0,0.00012625,2]
[346543491,1735066240713,-153.0,0.00012625,2]
[346543492,1735066240724,-153.0,0.00012625,2]
[346543493,1735066240734,-153.0,0.00012625,2]
[346543494,1735066240743,-153.0,0.00012625,2]
[346543495,1735066240752,-153.0,0.00012625,2]
[346543496,1735066240762,-153.0,0.00012625,2]
[346543497,1735066240772,-153.0,0.00012625,2]
[346543498,1735066240781,-153.0,0.00012626,2]
[346543500,1735066240791,-153.0,0.00012626,2]
[346543501,1735066240801,-153.0,0.00012626,2]
[346543502,1735066240810,-153.0,0.00012626,2]
[346543503,1735066240818,-153.0,0.00012626,2]
[346543504,1735066240828,-153.0,0.00012626,2]
[346543505,1735066240837,-153.0,0.00012626,2]
[346543506,1735066240846,-153.0,0.00012626,2]
[346543507,1735066240856,-153.0,0.00012626,2]
[346543508,1735066240865,-153.0,0.00012626,2]
[346543509,1735066240875,-153.0,0.00012626,2]
[346543510,1735066240885,-153.0,0.00012626,2]
[346543511,1735066240894,-153.0,0.00012626,2]
[346543512,1735066240904,-153.0,0.00012626,2]
[346543513,1735066240913,-153.0,0.00012626,2]
[346543514,1735066240922,-153.0,0.00012626,2]
[346543515,1735066240932,-153.0,0.00012626,2]
[346543516,1735066240942,-153.0,0.00012626,2]
[346543517,1735066240950,-153.0,0.00012626,2]
[346543518,1735066240959,-153.0,0.00012626,2]
[346543519,1735066240969,-153.0,0.00012626,2]
[346543520,1735066240978,-153.0,0.00012626,2]
[346543521,1735066240987,-153.0,0.00012626,2]
[346543522,1735066240996,-153.0,0.00012626,2]
[346543523,1735066241006,-153.0,0.00012626,2]
[346543524,1735066241015,-153.0,0.00012626,2]
[346543525,1735066241025,-153.0,0.00012626,2]
[346543526,1735066241035,-153.0,0.00012626,2]
[346543527,1735066241044,-153.0,0.00012626,2]
[346543528,1735066241053,-153.0,0.00012626,2]
[346543529,1735066241063,-153.0,0.00012626,2]
[346543530,1735066241072,-153.0,0.00012626,2]
[346543531,1735066241083,-153.0,0.00012626,2]
[346543532,1735066241092,-153.0,0.00012626,2]
[346543533,1735066241102,-153.0,0.00012626,2]
[346543534,1735066241112,-584.847471,0.000127,6]
[346543535,1735066241122,-750.084,0.00012805,2]
[346543536,1735066241131,-1043.22923214,0.00012805,2]
[346543537,1735066241140,-420.0,0.00012826,2]
[346543538,1735066241149,-178122.41938655,0.000129,2]
[346543539,1735066241160,-584.847471,0.0001295,6]
[346543540,1735066241169,-151.0,0.00012979,2]
[346543541,1735066241181,-887945.86212692,0.0001298,2]
[346543542,1735066241191,-151.0,0.0001298,2]
[346543543,1735066241201,-151.0,0.0001298,2]
[346543544,1735066241211,-151.0,0.0001298,2]
[346543545,1735066241221,-290.029021,0.0001298,2]
[346543546,1735066241230,-290.029021,0.0001298,2]
[346543547,1735066241254,-239.583489,0.0001298,2]
[346543548,1735066241271,-239.583489,0.0001298,2]
[346543549,1735066241292,-151.614301,0.0001298,2]
[346543550,1735066241310,-162.040459,0.0001298,2]
[346543551,1735066241327,-162.040459,0.0001298,2]
[346543552,1735066241345,-219.4856,0.0001298,2]
[346543553,1735066241364,-219.4856,0.0001298,2]
[346543554,1735066241383,-151.0,0.0001298,2]
[346543555,1735066241399,-151.0,0.0001298,2]
[346543556,1735066241417,-151.0,0.0001298,2]
[346543557,1735066241440,-151.0,0.0001298,2]
[346543558,1735066241456,-172.522628,0.0001298,2]
[346543559,1735066241471,-172.522628,0.0001298,2]
[346543560,1735066241489,-151.0,0.0001298,2]
[346543561,1735066241503,-500.0,0.0001298,2]
[346543562,1735066241518,-500.0,0.0001298,2]
[346543563,1735066241533,-151.0,0.0001298,2]
[346543564,1735066241554,-155.411602,0.0001298,2]
[346543565,1735066241569,-151.0,0.0001298,2]
[346543566,1735066241584,-151.0,0.0001298,2]
[346543567,1735066241599,-151.0,0.0001298,2]
[346543568,1735066241617,-151.0,0.0001298,2]
[346543569,1735066241631,-151.0,0.0001298,2]
[346543570,1735066241647,-151.0,0.0001298,2]
[346543571,1735066241664,-151.0,0.0001298,2]
[346543572,1735066241679,-151.684101,0.0001298,2]
[346543573,1735066241696,-236.781588,0.0001298,2]
[346543574,1735066241710,-151.0,0.0001298,2]
[346543575,1735066241725,-236.781588,0.0001298,2]
[346543576,1735066241741,-151.0,0.0001298,2]
[346543577,1735066241756,-154.481557,0.0001298,2]
[346543578,1735066241771,-151.502935,0.0001298,2]
[346543579,1735066241786,-152.217746,0.0001298,2]
[346543580,1735066241800,-696.22052,0.0001298,2]
[346543581,1735066241817,-696.22052,0.0001298,2]
[346543582,1735066241832,-151.0,0.0001298,2]
[346543583,1735066241846,-151.0,0.0001298,2]
[346543584,1735066241861,-293.761979,0.0001298,2]
[346543585,1735066241876,-151.0,0.0001298,2]
[346543586,1735066241891,-293.761979,0.0001298,2]
[346543587,1735066241905,-151.0,0.0001298,2]
[346543588,1735066241920,-151.0,0.0001298,2]
[346543589,1735066241936,-1094.537935,0.0001298,2]
[346543590,1735066241951,-151.0,0.0001298,2]
[346543591,1735066241966,-1094.537935,0.0001298,2]
[346543592,1735066241980,-151.0,0.0001298,2]
[346543593,1735066241996,-151.0,0.0001298,2]
[346543594,1735066242011,-151.0,0.0001298,2]
[346543595,1735066242027,-151.0,0.0001298,2]
[346543596,1735066242042,-430.616832,0.0001298,2]
[346543597,1735066242058,-151.0,0.0001298,2]
[346543598,1735066242073,-430.616832,0.0001298,2]
[346543599,1735066242087,-190.892312,0.0001298,2]
[346543600,1735066242103,-151.0,0.0001298,2]
[346543601,1735066242118,-151.0,0.0001298,2]
[346543602,1735066242132,-151.0,0.0001298,2]
[346543603,1735066242147,-151.0,0.0001298,2]
[346543604,1735066242162,-151.0,0.0001298,2]
[346543605,1735066242178,-310.519668,0.0001298,2]
[346543606,1735066242192,-310.519668,0.0001298,2]
[346543607,1735066242208,-151.0,0.0001298,2]
[346543608,1735066242223,-151.0,0.0001298,2]
[346543609,1735066242239,-151.0,0.0001298,2]
[346543610,1735066242254,-152.734811,0.0001298,2]
[346543611,1735066242269,-151.0,0.0001298,2]
[346543612,1735066242285,-300.779196,0.0001298,2]
[346543613,1735066242300,-253.216109,0.0001298,2]
[346543614,1735066242315,-253.216109,0.0001298,2]
[346543615,1735066242330,-151.0,0.0001298,2]
[346543616,1735066242345,-151.0,0.0001298,2]
[346543617,1735066242361,-151.0,0.0001298,2]
[346543618,1735066242376,-151.0,0.0001298,2]
[346543619,1735066242392,-151.0,0.0001298,2]
[346543620,1735066242407,-151.051327,0.0001298,2]
[346543621,1735066242423,-151.0,0.0001298,2]
[346543622,1735066242442,-151.0,0.0001298,2]
[346543623,1735066242458,-151.0,0.0001298,2]